fUST/lending_fUST_20250313
["ID","MTS","AMOUNT","RATE_DAILY","PERIOD"]
[356015805,1741799439106,-500.0,0.00021917,2]
[356015806,1741799439115,-500.0,0.00021917,2]
[356015807,1741799439124,-500.0,0.00021917,2]
[356015808,1741799439133,-500.0,0.00021917,2]
[356015809,1741799439143,-697.47,0.00021917,2]
[356015810,1741799439153,-500.0,0.00021917,2]
[356015811,1741799439163,-464.33998173,0.00021917,2]
[356015812,1741799439172,-500.0,0.00021917,2]
[356015813,1741799439181,-500.0,0.00021917,2]
[356015814,1741799439192,-500.0,0.00021917,2]
[356015815,1741799439201,-500.0,0.00021917,2]
[356015816,1741799439211,-500.0,0.00021917,2]
[356015817,1741799439220,-500.0,0.00021917,2]
[356015818,1741799439229,-500.0,0.00021917,2]
[356015819,1741799439239,-550.88,0.00021917,2]
[356015820,1741799439248,-500.0,0.00021917,2]
[356015821,1741799439257,-500.0,0.00021917,2]
[356015822,1741799439266,-500.0,0.00021917,2]
[356015823,1741799439276,-500.0,0.00021917,2]
[356015824,1741799439285,-500.0,0.00021917,2]
[356015825,1741799439340,-500.0,0.00021917,2]
[356015826,1741799439350,-500.0,0.00021917,2]
[356015827,1741799439359,-500.0,0.00021917,2]
[356015828,1741799439369,-1585.91,0.00021917,2]
[356015829,1741799439378,-500.0,0.00021917,2]
[356015830,1741799439387,-500.0,0.00021917,2]
[356015831,1741799439397,-828.76,0.00021917,2]
[356015832,1741799439406,-926.42,0.00021917,2]
[356015833,1741799439415,-500.0,0.00021917,2]
[356015834,1741799439425,-500.0,0.00021917,2]
[356015835,1741799439434,-1345.46,0.00021917,2]
[356015836,1741799439443,-500.0,0.00021917,2]
[356015837,1741799439458,-1464.23,0.00021917,2]
[356015838,1741799439467,-529.52,0.00021917,2]
[356015839,1741799439477,-500.0,0.00021917,2]
[356015840,1741799439487,-500.0,0.00021917,2]
[356015841,1741799439497,-500.0,0.00021917,2]
[356015842,1741799439507,-786.7,0.00021917,2]
[356015843,1741799439516,-2598.6,0.00021917,2]
[356015844,1741799439526,-558.38852288,0.00021917,2]
[356015845,1741799439535,-500.0,0.00021917,2]
[356015846,1741799439545,-1089.42,0.00021917,2]
[356015847,1741799439555,-300.0,0.00021917,2]
[356015848,1741799439564,-907.06,0.00021917,2]
[356015849,1741799439574,-500.0,0.00021917,2]
[356015850,1741799439583,-500.0,0.00021917,2]
[356015851,1741799439592,-500.0,0.00021917,2]
[356015852,1741799439602,-500.0,0.00021917,2]
[356015853,1741799439611,-500.0,0.00021917,2]
[356015854,1741799439621,-500.0,0.00021917,2]
[356015855,1741799439630,-500.0,0.00021917,2]
[356015856,1741799439639,-500.0,0.00021917,2]
[356015857,1741799439648,-500.0,0.00021917,2]
[356015858,1741799439657,-504.57,0.00021917,2]
[356015859,1741799439667,-770.37,0.00021917,2]
[356015860,1741799439676,-673.09,0.00021917,2]
[356015861,1741799439686,-853.73,0.00021917,2]
[356015862,1741799439695,-500.0,0.00021917,2]
[356015863,1741799439706,-500.0,0.00021917,2]
[356015864,1741799439716,-500.0,0.00021917,2]
[356015865,1741799439725,-235.98110283,0.00021917,2]
[356015866,1741799439735,-500.0,0.00021917,2]
[356015867,1741799439744,-500.0,0.00021917,2]
[356015868,1741799439753,-500.0,0.00021917,2]
[356015869,1741799439762,-1278.0,0.00021917,2]
[356015870,1741799439771,-500.0,0.00021917,2]
[356015871,1741799439781,-1884.07,0.00021917,2]
[356015872,1741799439790,-5465.6,0.00021917,2]
[356015873,1741799439799,-500.0,0.00021917,2]
[356015874,1741799439809,-500.0,0.00021917,2]
[356015875,1741799439818,-500.0,0.00021917,2]
[356015876,1741799439828,-500.0,0.00021917,2]
[356015877,1741799439837,-500.0,0.00021917,2]
[356015878,1741799439846,-500.0,0.00021917,2]
[356015879,1741799439855,-500.0,0.00021917,2]
[356015880,1741799439865,-935.47,0.00021917,2]
[356015881,1741799439875,-445.71381202,0.00021917,2]
[356015882,1741799439884,-247.74631659,0.00021917,2]
[356015883,1741799439893,-500.0,0.00021917,2]
[356015884,1741799439903,-907.05,0.00021917,2]
[356015885,1741799439912,-500.0,0.00021917,2]
[356015886,1741799439921,-500.0,0.00021917,2]
[356015887,1741799439932,-500.0,0.00021917,2]
[356015889,1741799439941,-786.3,0.00021917,2]
[356015891,1741799439951,-500.0,0.00021917,2]
[356015893,1741799439960,-668.37,0.00021917,2]
[356015895,1741799439970,-500.0,0.00021917,2]
[356015896,1741799439979,-500.0,0.00021917,2]
[356015898,1741799439988,-872.09,0.00021917,2]
[356015900,1741799439998,-500.0,0.00021917,2]
[356015901,1741799440012,-500.0,0.00021917,2]
[356015902,1741799440021,-720.71,0.00021917,2]
[356015903,1741799440031,-500.0,0.00021917,2]
[356015904,1741799440040,-500.0,0.00021917,2]
[356015905,1741799440051,-500.0,0.00021917,2]
[356015906,1741799440060,-1934.65,0.00021917,2]
[356015907,1741799440069,-415.73913894,0.00021917,2]
[356015908,1741799440079,-917.94,0.00021917,2]
[356015909,1741799440089,-500.0,0.00021917,5]
[356015911,1741799440100,-1461.96,0.00021917,2]
[356015913,1741799440109,-500.0,0.00021917,2]
[356015915,1741799440119,-660.7,0.00021917,2]
[356015917,1741799440128,-877.54,0.00021917,2]
[356015919,1741799440137,-500.0,0.00021917,2]
[356015921,1741799440147,-556.49728153,0.00021917,2]
[356015923,1741799440158,-738.85,0.00021917,2]
[356015925,1741799440167,-500.0,0.00021917,2]
[356015927,1741799440177,-151.69940185,0.00021917,2]
[356015929,1741799440186,-500.0,0.00021917,2]
[356015931,1741799440195,-851.91,0.00021917,2]
[356015933,1741799440205,-632.26,0.00021917,2]
[356015935,1741799440213,-517.89584402,0.00021917,2]
[356015937,1741799440223,-500.0,0.00021917,2]
[356015939,1741799440232,-500.0,0.00021917,2]
[356015941,1741799440241,-500.0,0.00021917,2]
[356015943,1741799440250,-500.0,0.00021917,2]
[356015945,1741799440260,-500.0,0.00021917,2]
[356015947,1741799440269,-500.0,0.00021917,2]
[356015949,1741799440278,-733.64,0.00021917,2]
[356015951,1741799440288,-1187.91,0.00021917,2]
[356015953,1741799440299,-507.73,0.00021917,2]
[356015955,1741799440308,-500.0,0.00021917,2]
[356015957,1741799440318,-1213.19,0.00021917,2]
[356015959,1741799440327,-3779.6,0.00021917,2]
[356015961,1741799440336,-1083.92,0.00021917,2]
[356015963,1741799440346,-500.0,0.00021917,2]
[356015965,1741799440355,-500.0,0.00021917,2]
[356015967,1741799440365,-519.91580609,0.00021917,2]
[356015969,1741799440375,-483.87516645,0.00021917,2]
[356015971,1741799440384,-500.0,0.00021917,2]
[356015973,1741799440394,-500.0,0.00021917,2]
[356015975,1741799440404,-500.0,0.00021917,2]
[356015977,1741799440414,-500.0,0.00021917,2]
[356015979,1741799440423,-500.0,0.00021917,2]
[356015981,1741799440433,-531.93,0.00021917,2]
[356015983,1741799440443,-500.0,0.00021917,2]
[356015985,1741799440452,-25485.53,0.00021917,2]
[356015987,1741799440461,-1171.87,0.00021917,2]
[356015989,1741799440471,-500.0,0.00021917,2]
[356015991,1741799440482,-894.77,0.00021917,2]
[356015993,1741799440491,-847.39,0.00021917,2]
[356015995,1741799440501,-500.0,0.00021917,2]
[356015997,1741799440510,-12539.44,0.00021917,2]
[356015999,1741799440520,-500.0,0.00021917,2]
[356016001,1741799440529,-500.0,0.00021917,2]
[356016003,1741799440539,-500.0,0.00021917,2]
[356016005,1741799440553,-500.0,0.00021917,2]
[356016007,1741799440562,-1146.69,0.00021917,2]
[356016009,1741799440572,-500.0,0.00021917,2]
[356016011,1741799440582,-1829.47,0.00021917,2]
[356016013,1741799440591,-946.36,0.00021917,2]
[356016015,1741799440601,-1141.41,0.00021917,2]
[356016017,1741799440611,-1109.29,0.00021917,2]
[356016019,1741799440623,-500.0,0.00021917,2]
[356016022,1741799440633,-500.0,0.00021917,2]
[356016024,1741799440642,-500.0,0.00021917,2]
[356016026,1741799440653,-500.0,0.00021917,2]
[356016028,1741799440662,-500.0,0.00021917,2]
[356016030,1741799440672,-1263.82,0.00021917,2]
[356016032,1741799440681,-732.3,0.00021917,2]
[356016034,1741799440691,-936.27,0.00021917,2]
[356016036,1741799440701,-500.0,0.00021917,2]
[356016038,1741799440710,-500.0,0.00021917,2]
[356016039,1741799440719,-500.0,0.00021917,2]
[356016042,1741799440730,-685.63,0.00021917,2]
[356016044,1741799440740,-701.06,0.00021917,2]
[356016046,1741799440750,-2681.94,0.00021917,2]
[356016048,1741799440759,-500.0,0.00021917,2]
[356016050,1741799440769,-500.0,0.00021917,2]
[356016052,1741799440779,-500.0,0.00021917,2]
[356016053,1741799440788,-1309.03,0.00021917,2]
[356016055,1741799440804,-2323.52,0.00021917,2]
[356016057,1741799440814,-500.0,0.00021917,2]
[356016059,1741799440824,-500.0,0.00021917,2]
[356016062,1741799440835,-2714.1,0.00021917,2]
[356016063,1741799440845,-500.0,0.00021917,2]
[356016065,1741799440855,-569.51,0.00021917,2]
[356016068,1741799440866,-500.0,0.00021917,2]
[356016069,1741799440877,-500.0,0.00021917,2]
[356016071,1741799440887,-1000.0,0.00021917,7]
[356016073,1741799440898,-500.0,0.00021917,2]
[356016075,1741799440908,-500.0,0.00021917,2]
[356016077,1741799440918,-500.0,0.00021917,2]
[356016079,1741799440928,-2072.62,0.00021917,2]
[356016081,1741799440937,-915.44,0.00021917,2]
[356016083,1741799440947,-927.29,0.00021917,2]
[356016085,1741799440956,-1422.69,0.00021917,2]
[356016087,1741799440967,-772.72,0.00021917,2]
[356016090,1741799440977,-500.0,0.00021917,2]
[356016092,1741799440986,-500.0,0.00021917,2]
[356016094,1741799440995,-1154.53,0.00021917,2]
[356016096,1741799441006,-620.12,0.00021917,2]
[356016098,1741799441020,-1621.94,0.00021917,2]
[356016100,1741799441029,-161.58520475,0.00021917,2]
[356016102,1741799441038,-755.61,0.00021917,2]
[356016103,1741799441049,-1070.76,0.00021917,2]
[356016105,1741799441059,-500.0,0.00021917,2]
[356016108,1741799441068,-500.0,0.00021917,2]
[356016109,1741799441078,-500.0,0.00021917,2]
[356016111,1741799441088,-540.12,0.00021917,2]
[356016113,1741799441097,-500.0,0.00021917,2]
[356016116,1741799441107,-500.0,0.00021917,2]
[356016118,1741799441117,-545.63,0.00021917,2]
[356016120,1741799441126,-500.0,0.00021917,2]
[356016122,1741799441136,-803.05,0.00021917,2]
[356016124,1741799441146,-500.0,0.00021917,2]
[356016126,1741799441156,-2124.13,0.00021917,2]
[356016128,1741799441165,-759.35,0.00021917,2]
[356016130,1741799441174,-355.54030018,0.00021917,2]
[356016132,1741799441184,-507.56381159,0.00021917,2]
[356016133,1741799441193,-500.0,0.00021917,2]
[356016136,1741799441205,-500.93926964,0.00021917,2]
[356016138,1741799441214,-500.0,0.00021917,2]
[356016139,1741799441223,-500.0,0.00021917,2]
[356016141,1741799441232,-500.0,0.00021917,2]
[356016143,1741799441241,-500.0,0.00021917,2]
[356016144,1741799441250,-500.0,0.00021917,2]
[356016145,1741799441259,-500.0,0.00021917,2]
[356016146,1741799441269,-500.0,0.00021917,2]
[356016147,1741799441278,-222.53599685,0.00021917,2]
[356016148,1741799441289,-500.0,0.00021917,2]
[356016149,1741799441300,-500.0,0.00021917,2]
[356016150,1741799441311,-640.32,0.00021917,2]
[356016151,1741799441320,-2819.35,0.00021917,2]
[356016152,1741799441329,-1649.95,0.00021917,2]
[356016153,1741799441339,-500.0,0.00021917,2]
[356016154,1741799441348,-110510.75505052,0.00021933,5]
[356016155,1741799441357,-9714.29012203,0.00021933,5]
[356016156,1741799441366,-222000.0,0.00021933,2]
[356016157,1741799441376,-500.0,0.00021973,2]
[356016158,1741799441385,-500.0,0.00021973,2]
[356016159,1741799441396,-500.0,0.00021973,2]
[356016160,1741799441405,-500.0,0.00021973,2]
[356016161,1741799441414,-160.45532847,0.00021973,2]
[356016162,1741799441422,-500.0,0.00021973,2]
[356016163,1741799441431,-274.31055979,0.00021973,2]
[356016164,1741799441440,-160.46871374,0.00021973,2]
[356016165,1741799441449,-500.0,0.00021973,2]
[356016167,1741799441459,-500.0,0.00021973,2]
[356016169,1741799441468,-154.15072561,0.00021973,2]
[356016171,1741799441476,-500.0,0.00021973,2]
[356016173,1741799441486,-500.40847955,0.00021973,2]
[356016175,1741799441495,-500.0,0.00021973,2]
[356016177,1741799441504,-500.0,0.00021973,2]
[356016179,1741799441514,-500.0,0.00021973,2]
[356016181,1741799441524,-500.0,0.00021973,2]
[356016183,1741799441533,-500.0,0.00021973,2]
[356016185,1741799441545,-500.0,0.00021973,2]
[356016187,1741799441554,-500.0,0.00021973,2]
[356016189,1741799441564,-500.0,0.00021973,2]
[356016191,1741799441574,-500.0,0.00021973,2]
[356016193,1741799441584,-500.0,0.00021973,2]
[356016195,1741799441594,-500.79311889,0.00021973,2]
[356016197,1741799441603,-500.0,0.00021973,2]
[356016199,1741799441612,-500.0,0.00021973,2]
[356016201,1741799441622,-500.0,0.00021973,2]
[356016203,1741799441632,-500.0,0.00021973,2]
[356016205,1741799441642,-169.88853558,0.00021973,2]
[356016207,1741799441651,-303.29956193,0.00021973,2]
[356016209,1741799441662,-500.23620417,0.00021973,2]
[356016211,1741799441671,-267.62678819,0.00021973,2]
[356016213,1741799441681,-500.0,0.00021973,2]
[356016215,1741799441690,-176.85535303,0.00021973,2]
[356016217,1741799441700,-500.0,0.00021973,2]
[356016219,1741799441709,-500.0,0.00021973,2]
[356016221,1741799441719,-404.7363472,0.00021973,2]
[356016224,1741799441729,-292.12321373,0.00021973,2]
[356016226,1741799441739,-500.0,0.00021973,2]
[356016228,1741799441748,-500.0,0.00021973,2]
[356016230,1741799441758,-2000.0,0.00022,2]
[356016232,1741799441768,-1844.31182077,0.00022,2]
[356016234,1741799441778,-168.0,0.00022091,2]
[356016236,1741799441787,-344.65694257,0.00022091,3]
[356016238,1741799441798,-353.0,0.00022091,3]
[356016240,1741799441807,-403.47516316,0.00022091,3]
[356016242,1741799441817,-150.0,0.00022143,2]
[356016244,1741799441827,-150.0,0.00022143,2]
[356016246,1741799441836,-1920.0,0.00022143,2]
[356016248,1741799441846,-540.0,0.00022143,2]
[356016250,1741799441855,-2272.0,0.00022143,2]
[356016252,1741799441865,-200.0,0.00022144,2]
[356016254,1741799441875,-500.0,0.00022173,2]
[356016256,1741799441884,-500.0,0.00022173,2]
[356016258,1741799441894,-500.0,0.00022173,2]
[356016260,1741799441904,-500.0,0.00022173,2]
[356016262,1741799441914,-300.0,0.00022173,2]
[356016264,1741799441923,-500.0,0.00022173,2]
[356016267,1741799441936,-500.0,0.00022173,2]
[356016269,1741799441946,-315.14321334,0.00022173,2]
[356016271,1741799441955,-500.0,0.00022173,2]
[356016273,1741799441965,-500.0,0.00022173,2]
[356016275,1741799441974,-500.0,0.00022173,2]
[356016277,1741799441984,-500.0,0.00022173,2]
[356016279,1741799441994,-500.0,0.00022173,2]
[356016281,1741799442005,-500.0,0.00022173,2]
[356016283,1741799442019,-500.0,0.00022173,2]
[356016285,1741799442028,-500.0,0.00022173,2]
[356016288,1741799442038,-500.0,0.00022173,2]
[356016290,1741799442050,-500.0,0.00022173,2]
[356016292,1741799442059,-500.0,0.00022173,2]
[356016294,1741799442069,-500.0,0.00022173,2]
[356016296,1741799442078,-500.0,0.00022173,2]
[356016298,1741799442088,-485.33174382,0.00022173,2]
[356016300,1741799442097,-230.31197625,0.00022173,2]
[356016302,1741799442107,-500.0,0.00022173,2]
[356016304,1741799442116,-500.0,0.00022173,2]
[356016306,1741799442126,-500.0,0.00022173,2]
[356016308,1741799442135,-500.0,0.00022173,2]
[356016310,1741799442145,-500.0,0.00022173,2]
[356016312,1741799442155,-500.0,0.00022173,2]
[356016314,1741799442164,-501.26208016,0.00022173,2]
[356016316,1741799442173,-500.0,0.00022173,2]
[356016318,1741799442183,-500.0,0.00022173,2]
[356016320,1741799442192,-500.0,0.00022173,2]
[356016322,1741799442202,-603.1910099,0.00022173,2]
[356016324,1741799442212,-612.48701335,0.00022173,2]
[356016327,1741799442222,-500.0,0.00022173,2]
[356016329,1741799442231,-500.0,0.00022173,2]
[356016331,1741799442241,-500.0,0.00022173,2]
[356016333,1741799442251,-161.87639361,0.00022173,2]
[356016335,1741799442260,-500.0,0.00022173,2]
[356016337,1741799442270,-285.69642306,0.00022173,2]
[356016339,1741799442280,-599.82939063,0.00022173,2]
[356016341,1741799442291,-313.62809527,0.00022173,2]
[356016343,1741799442302,-500.0,0.00022173,2]
[356016345,1741799442312,-500.0,0.00022173,2]
[356016347,1741799442322,-500.0,0.00022173,2]
[356016349,1741799442332,-500.0,0.00022173,2]
[356016351,1741799442342,-500.0,0.00022173,2]
[356016353,1741799442352,-392.18404094,0.00022173,2]
[356016356,1741799442362,-200.009412,0.00022173,2]
[356016358,1741799442372,-500.0,0.00022173,2]
[356016360,1741799442381,-500.0,0.00022173,2]
[356016362,1741799442390,-500.0,0.00022173,2]
[356016364,1741799442400,-1000.0,0.00022191,2]
[356016366,1741799442409,-1011.04,0.00022191,2]
[356016368,1741799442419,-168.0,0.00022191,2]
[356016370,1741799442428,-581.03157363,0.00022191,2]
[356016372,1741799442438,-500.0,0.00022191,2]
[356016374,1741799442448,-500.0,0.00022191,2]
[356016376,1741799442458,-500.0,0.00022191,2]
[356016378,1741799442468,-500.0,0.00022191,2]
[356016380,1741799442478,-498.79734915,0.00022191,2]
[356016382,1741799442487,-500.0,0.00022191,2]
[356016384,1741799442496,-500.0,0.00022191,2]
[356016386,1741799442506,-500.0,0.00022191,2]
[356016388,1741799442515,-616.62594793,0.00022191,2]
[356016390,1741799442525,-500.0,0.00022191,2]
[356016392,1741799442535,-500.0,0.00022191,2]
[356016394,1741799442546,-500.0,0.00022191,2]
[356016397,1741799442556,-500.0,0.00022191,2]
[356016399,1741799442567,-500.0,0.00022191,2]
[356016401,1741799442578,-500.0,0.00022191,2]
[356016403,1741799442588,-500.0,0.00022191,2]
[356016405,1741799442597,-500.0,0.00022191,2]
[356016407,1741799442607,-500.0,0.00022191,2]
[356016409,1741799442617,-500.0,0.00022191,2]
[356016411,1741799442626,-218.5467675,0.00022191,2]
[356016413,1741799442636,-500.0,0.00022191,2]
[356016415,1741799442646,-500.0,0.00022191,2]
[356016417,1741799442656,-161.402126,0.00022191,7]
[356016419,1741799442665,-500.0,0.00022191,2]
[356016421,1741799442675,-500.0,0.00022191,2]
[356016423,1741799442685,-1774.4,0.00022191,2]
[356016426,1741799442695,-500.0,0.00022191,2]
[356016428,1741799442705,-500.0,0.00022191,2]
[356016430,1741799442715,-500.0,0.00022191,2]
[356016432,1741799442724,-500.0,0.00022191,2]
[356016434,1741799442734,-500.0,0.00022191,2]
[356016437,1741799442743,-500.0,0.00022191,2]
[356016440,1741799442752,-500.0,0.00022191,2]
[356016442,1741799442762,-151.0,0.00022191,7]
[356016444,1741799442772,-500.0,0.00022191,2]
[356016446,1741799442782,-500.0,0.00022191,2]
[356016448,1741799442791,-500.0,0.00022191,2]
[356016450,1741799442803,-160.04616876,0.00022191,2]
[356016452,1741799442813,-576.13,0.00022191,2]
[356016454,1741799442823,-151.0,0.00022191,7]
[356016456,1741799442833,-500.0,0.00022191,2]
[356016458,1741799442842,-277.386886,0.00022191,7]
[356016461,1741799442853,-500.0,0.00022191,2]
[356016463,1741799442863,-500.0,0.00022191,2]
[356016465,1741799442873,-500.0,0.00022191,2]
[356016467,1741799442883,-500.0,0.00022191,2]
[356016469,1741799442893,-151.0,0.00022191,7]
[356016471,1741799442903,-500.0,0.00022191,2]
[356016473,1741799442912,-500.0,0.00022191,2]
[356016475,1741799442922,-500.0,0.00022191,2]
[356016477,1741799442931,-500.0,0.00022191,2]
[356016479,1741799442942,-520.0,0.00022191,2]
[356016481,1741799442951,-1146.89,0.00022191,2]
[356016483,1741799442961,-762.92,0.00022191,2]
[356016485,1741799442971,-802.04,0.00022191,2]
[356016487,1741799442981,-151.0,0.00022191,7]
[356016489,1741799442991,-151.0,0.00022191,7]
[356016491,1741799443001,-712.1,0.00022191,2]
[356016493,1741799443012,-500.0,0.00022191,2]
[356016495,1741799443024,-500.0,0.00022191,2]
[356016498,1741799443034,-1441.4,0.00022191,2]
[356016500,1741799443044,-151.0,0.00022191,7]
[356016502,1741799443057,-500.0,0.00022191,2]
[356016504,1741799443067,-500.0,0.00022191,2]
[356016506,1741799443076,-500.0,0.00022191,2]
[356016508,1741799443086,-752.24,0.00022191,2]
[356016510,1741799443097,-500.0,0.00022191,2]
[356016512,1741799443107,-500.0,0.00022191,2]
[356016514,1741799443117,-372.370341,0.00022191,7]
[356016516,1741799443127,-500.0,0.00022191,2]
[356016518,1741799443137,-372.370341,0.00022191,7]
[356016520,1741799443147,-500.0,0.00022191,2]
[356016522,1741799443157,-500.0,0.00022191,2]
[356016524,1741799443167,-697.47,0.00022191,2]
[356016527,1741799443177,-151.0,0.00022191,7]
[356016529,1741799443187,-500.0,0.00022191,2]
[356016531,1741799443197,-500.0,0.00022191,2]
[356016533,1741799443207,-151.0,0.00022191,7]
[356016535,1741799443217,-151.0,0.00022191,7]
[356016537,1741799443227,-500.0,0.00022191,2]
[356016539,1741799443236,-151.0,0.00022191,7]
[356016541,1741799443246,-500.0,0.00022191,2]
[356016543,1741799443256,-151.0,0.00022191,7]
[356016545,1741799443266,-500.0,0.00022191,2]
[356016547,1741799443276,-500.0,0.00022191,2]
[356016549,1741799443285,-550.88,0.00022191,2]
[356016551,1741799443296,-500.0,0.00022191,2]
[356016553,1741799443306,-500.0,0.00022191,2]
[356016555,1741799443316,-262.011423,0.00022191,7]
[356016557,1741799443326,-500.0,0.00022191,2]
[356016559,1741799443336,-500.0,0.00022191,2]
[356016562,1741799443346,-500.0,0.00022191,2]
[356016564,1741799443356,-262.011423,0.00022191,7]
[356016566,1741799443366,-151.0,0.00022191,7]
[356016568,1741799443375,-500.0,0.00022191,2]
[356016570,1741799443385,-151.0,0.00022191,7]
[356016572,1741799443395,-1585.91,0.00022191,2]
[356016575,1741799443405,-151.930361,0.00022191,7]
[356016578,1741799443415,-151.0,0.00022191,7]
[356016581,1741799443425,-500.0,0.00022191,2]
[356016584,1741799443435,-828.76,0.00022191,2]
[356016587,1741799443445,-151.0,0.00022191,7]
[356016591,1741799443455,-926.42,0.00022191,2]
[356016594,1741799443465,-151.0,0.00022191,7]
[356016597,1741799443475,-500.0,0.00022191,2]
[356016600,1741799443486,-1345.46,0.00022191,2]
[356016603,1741799443496,-209.71249026,0.00022191,2]
[356016606,1741799443506,-151.0,0.00022191,7]
[356016609,1741799443516,-1464.23,0.00022191,2]
[356016613,1741799443526,-529.52,0.00022191,2]
[356016617,1741799443536,-500.0,0.00022191,2]
[356016620,1741799443546,-500.0,0.00022191,2]
[356016623,1741799443556,-786.7,0.00022191,2]
[356016626,1741799443566,-2598.6,0.00022191,2]
[356016628,1741799443576,-500.0,0.00022191,2]
[356016630,1741799443586,-1089.42,0.00022191,2]
[356016632,1741799443596,-907.06,0.00022191,2]
[356016634,1741799443606,-404.180464,0.00022191,7]
[356016636,1741799443616,-404.180464,0.00022191,7]
[356016638,1741799443626,-151.0,0.00022191,7]
[356016641,1741799443637,-500.0,0.00022191,2]
[356016643,1741799443647,-500.0,0.00022191,2]
[356016645,1741799443657,-500.0,0.00022191,2]
[356016647,1741799443667,-152.076781,0.00022191,7]
[356016649,1741799443676,-500.0,0.00022191,2]
[356016651,1741799443687,-500.0,0.00022191,2]
[356016653,1741799443696,-500.0,0.00022191,2]
[356016655,1741799443707,-500.0,0.00022191,2]
[356016657,1741799443717,-500.0,0.00022191,2]
[356016659,1741799443728,-504.57,0.00022191,2]
[356016661,1741799443738,-770.37,0.00022191,2]
[356016664,1741799443748,-673.09,0.00022191,2]
[356016666,1741799443758,-151.0,0.00022191,7]
[356016668,1741799443769,-853.73,0.00022191,2]
[356016670,1741799443778,-500.0,0.00022191,2]
[356016672,1741799443788,-172.485941,0.00022191,7]
[356016674,1741799443799,-500.0,0.00022191,2]
[356016676,1741799443809,-172.485941,0.00022191,7]
[356016678,1741799443820,-197.077683,0.00022191,7]
[356016680,1741799443830,-500.0,0.00022191,2]
[356016682,1741799443841,-197.077683,0.00022191,7]
[356016684,1741799443851,-151.0,0.00022191,7]
[356016686,1741799443862,-160.0,0.00022191,7]
[356016688,1741799443872,-500.0,0.00022191,2]
[356016690,1741799443882,-1278.0,0.00022191,2]
[356016693,1741799443892,-500.0,0.00022191,2]
[356016716,1741799444077,-1884.07,0.00022191,2]
[356016718,1741799444116,-5465.6,0.00022191,2]
[356016720,1741799444127,-500.0,0.00022191,2]
[356016722,1741799444137,-500.0,0.00022191,2]
[356016724,1741799444147,-500.0,0.00022191,2]
[356016727,1741799444158,-151.0,0.00022191,7]
[356016729,1741799444167,-500.0,0.00022191,2]
[356016731,1741799444177,-500.0,0.00022191,2]
[356016733,1741799444186,-500.0,0.00022191,2]
[356016735,1741799444196,-935.47,0.00022191,2]
[356016737,1741799444205,-500.0,0.00022191,2]
[356016739,1741799444214,-907.05,0.00022191,2]
[356016741,1741799444224,-500.0,0.00022191,2]
[356016743,1741799444233,-786.3,0.00022191,2]
[356016745,1741799444243,-500.0,0.00022191,2]
[356016747,1741799444252,-668.37,0.00022191,2]